bitfinex/quotes_SOLUSD_20220207
["timestamp","ask_amount","ask_price","bid_price","bid_amount"]
[1644215200552,41.1846,118.13,118.04,62.72547744]
[1644215201759,53.8906,118.13,118.04,62.72547744]
[1644215201962,53.8906,118.13,118.04,39.59847744]
[1644215202165,2.1056109,118.12,118.04,39.94836026]
[1644215202363,12.21,118.11,118.04,39.94836026]
[1644215202562,18.21,118.11,118.04,39.94836026]
[1644215202764,18.46,118.11,118.04,39.94836026]
[1644215202963,18.46,118.11,118.04,0.34988282]
[1644215204066,31.1683,118.11,118.04,0.34988282]
[1644215204464,33.2739109,118.11,118.04,0.34988282]
[1644215204663,31.1683,118.11,118.04,0.34988282]
[1644215205463,30.9183,118.11,118.04,0.34988282]
[1644215206868,31.1683,118.11,118.04,0.34988282]
[1644215210582,47.6402,118.13,118.04,0.34988282]
[1644215210780,34.9346,118.13,118.04,0.34988282]
[1644215210996,40.9346,118.13,118.05,1.84300018]
[1644215211197,28.7246,118.13,118.05,2.09300018]
[1644215211398,28.7246,118.13,118.06,35.49475311]
[1644215211800,6.0,118.13,118.06,35.49475311]
[1644215211998,29.2429,118.15,118.06,35.74475311]
[1644215212199,52.1329,118.15,118.06,35.74475311]
[1644215212400,52.1329,118.15,118.07,23.8322]
[1644215215302,52.3829,118.15,118.07,23.8322]
[1644215217102,29.14,118.15,118.07,23.8322]
[1644215217601,6.25,118.15,118.07,23.8322]
[1644215217802,6.25,118.15,118.07,24.0822]
[1644215218903,18.21,118.17,118.07,25.9251603]
[1644215219105,18.21,118.17,118.07,31.9251603]
[1644215219903,18.21,118.17,118.07,30.0822]
[1644215221106,6.0,118.17,118.07,30.0822]
[1644215221706,0.25,118.17,118.07,30.0822]
[1644215221906,29.2332,118.18,118.07,30.0822]
[1644215222306,29.2332,118.18,118.07,24.0822]
[1644215222507,29.2332,118.18,118.07,24.43208282]
[1644215222708,28.9832,118.18,118.07,24.43208282]
[1644215222908,28.9832,118.18,118.07,30.43208282]
[1644215224110,28.9832,118.18,118.07,43.12988282]
[1644215224309,28.9832,118.18,118.07,44.97284312]
[1644215224510,28.9832,118.18,118.07,43.12988282]
[1644215224712,29.2332,118.18,118.07,43.12988282]
[1644215231018,29.2332,118.18,118.07,42.87988282]
[1644215231219,12.21,118.17,118.07,24.18208282]
[1644215231617,24.2399,118.16,118.07,24.18208282]
[1644215231819,36.6999,118.16,118.07,24.18208282]
[1644215232017,42.6999,118.16,118.07,24.18208282]
[1644215232420,42.6999,118.16,118.07,24.43208282]
[1644215232617,42.6999,118.16,118.07,30.43208282]
[1644215233120,42.6999,118.16,118.07,24.18208282]
[1644215233318,42.6999,118.16,118.07,0.34988282]
[1644215234120,12.7047,118.14,118.07,0.34988282]
[1644215234320,48.96518959,118.14,118.07,0.34988282]
[1644215234521,67.17518959,118.14,118.07,0.34988282]
[1644215235621,56.0774,118.14,118.07,0.34988282]
[1644215236722,58.1830109,118.14,118.07,0.34988282]
[1644215237324,56.0774,118.14,118.07,0.34988282]
[1644215238724,43.3727,118.14,118.07,0.34988282]
[1644215239724,44.56642556,118.14,118.07,0.34988282]
[1644215240332,44.56642556,118.14,118.07,24.09958282]
[1644215240727,43.3727,118.14,118.07,24.09958282]
[1644215242929,31.1627,118.14,118.07,24.09958282]
[1644215243128,32.35642556,118.14,118.07,24.09958282]
[1644215243329,43.3727,118.14,118.07,24.09958282]
[1644215243529,44.56642556,118.14,118.07,24.09958282]
[1644215244130,44.56642556,118.14,118.07,0.34988282]
[1644215245335,1.19372556,118.13,118.07,0.34988282]
[1644215245530,13.40372556,118.13,118.07,0.34988282]
[1644215245732,19.65372556,118.13,118.07,0.34988282]
[1644215245931,32.35972556,118.13,118.07,0.34988282]
[1644215247634,18.46,118.13,118.07,0.34988282]
[1644215249536,18.21,118.13,118.07,0.34988282]
[1644215250140,6.0,118.13,118.07,0.34988282]
[1644215250541,30.9127,118.14,118.07,0.34988282]
[1644215250743,30.9127,118.14,118.07,23.20398282]
[1644215250949,31.1627,118.14,118.07,23.20398282]
[1644215261982,33.34687398,118.14,118.07,23.20398282]
[1644215263401,12.21,118.13,118.07,23.20398282]
[1644215263579,18.21,118.13,118.07,0.34988282]
[1644215263781,24.0435,118.12,118.07,0.34988282]
[1644215263981,36.2535,118.12,118.07,0.34988282]
[1644215264183,42.5035,118.12,118.07,0.34988282]
[1644215268693,30.2935,118.12,118.07,0.34988282]
[1644215269492,30.0435,118.12,118.07,0.34988282]
[1644215270795,30.2935,118.12,118.07,0.34988282]
[1644215275312,30.0435,118.12,118.07,0.34988282]
[1644215275711,24.0435,118.12,118.07,0.34988282]
[1644215275913,6.0,118.12,118.07,0.34988282]
[1644215276111,30.9121,118.16,118.07,0.34988282]
[1644215276312,23.8159,118.15,118.07,0.34988282]
[1644215276611,29.8159,118.15,118.07,0.34988282]
[1644215276811,17.81211478,118.14,118.07,0.34988282]
[1644215277213,6.25,118.14,118.07,0.34988282]
[1644215277613,0.25,118.14,118.07,0.34988282]
[1644215278113,3.43977152,118.14,118.07,0.34988282]
[1644215278517,17.81141772,118.13,118.07,0.34988282]
[1644215278712,24.06141772,118.13,118.07,0.34988282]
[1644215279215,6.25,118.13,118.07,0.34988282]
[1644215280216,29.217,118.13,118.07,0.34988282]
[1644215280418,28.967,118.13,118.07,0.34988282]
[1644215282719,29.217,118.13,118.07,0.34988282]
[1644215283722,12.21,118.12,118.07,0.34988282]
[1644215284121,18.46,118.12,118.07,0.34988282]
[1644215284922,31.1667,118.12,118.07,0.34988282]
[1644215287025,17.80665031,118.11,118.07,0.34988282]
[1644215287223,24.919,118.1,118.07,0.34988282]
[1644215287623,31.169,118.1,118.07,0.34988282]
[1644215288227,18.77459994,118.09,118.07,0.34988282]
[1644215288425,30.98459994,118.09,118.07,0.34988282]
[1644215288727,37.23459994,118.09,118.07,0.34988282]
[1644215289326,39.34021084,118.09,118.07,0.34988282]
[1644215289527,24.2663,118.08,118.07,0.34988282]
[1644215289727,24.5163,118.08,118.07,0.34988282]
[1644215289928,30.5163,118.08,118.07,0.34988282]
[1644215290728,42.4763,118.08,118.07,0.34988282]
[1644215292031,42.7263,118.08,118.07,0.34988282]
[1644215295033,42.4763,118.08,118.07,0.34988282]
[1644215295235,6.06439994,118.09,118.07,0.34988282]
[1644215295434,12.21,118.13,118.07,0.34988282]
[1644215296035,17.80717041,118.12,118.07,0.34988282]
[1644215296736,24.05717041,118.12,118.07,0.34988282]
[1644215296936,6.25,118.12,118.05,43.47119777]
[1644215297159,0.25,118.12,118.05,43.47119777]
[1644215297336,6.0,118.12,118.06,23.6353]
[1644215297638,18.21,118.14,118.06,23.6353]
[1644215297836,18.21,118.14,118.07,37.61580792]
[1644215298236,18.21,118.14,118.07,37.86580792]
[1644215298836,18.46,118.14,118.07,37.86580792]
[1644215299040,18.46,118.14,118.07,37.61580792]
[1644215300641,18.21,118.14,118.07,37.61580792]
[1644215301041,30.915,118.14,118.07,37.61580792]
[1644215302042,31.165,118.14,118.07,37.61580792]
[1644215305966,18.21,118.14,118.07,37.61580792]
[1644215306168,18.21,118.14,118.07,37.86580792]
[1644215306770,6.0,118.14,118.07,37.86580792]
[1644215307166,0.25,118.14,118.07,37.86580792]
[1644215307367,42.8664,118.17,118.08,23.6994]
[1644215307567,42.8664,118.17,118.09,43.96915206]
[1644215307767,42.8664,118.17,118.09,44.21915206]
[1644215308266,42.8664,118.17,118.09,43.96915206]
[1644215308466,55.5684,118.17,118.09,43.96915206]
[1644215308867,17.79989801,118.16,118.09,43.96915206]
[1644215309068,12.21,118.15,118.09,43.96915206]
[1644215309270,12.46,118.15,118.09,43.96915206]
[1644215309467,18.46,118.15,118.09,43.96915206]
[1644215309667,18.46,118.15,118.09,44.21915206]
[1644215310268,12.46,118.15,118.09,44.21915206]
[1644215311670,18.46,118.15,118.09,44.21915206]
[1644215312274,6.25,118.15,118.09,43.96915206]
[1644215312572,0.25,118.15,118.09,43.96915206]
[1644215312772,6.0,118.15,118.09,43.96915206]
[1644215313172,6.25,118.15,118.09,43.96915206]
[1644215313372,0.25,118.15,118.09,43.96915206]
[1644215314377,31.1628,118.16,118.09,43.96915206]
[1644215316879,31.1628,118.16,118.09,43.46915206]
[1644215318083,30.9128,118.16,118.09,43.46915206]
[1644215318280,30.9128,118.16,118.09,43.71915206]
[1644215319682,31.1628,118.16,118.09,43.71915206]
[1644215319882,31.1628,118.16,118.09,43.46915206]
[1644215321083,18.46,118.16,118.09,43.46915206]
[1644215321283,18.46,118.16,118.09,43.71915206]
[1644215323186,18.46,118.16,118.09,43.46915206]
[1644215323787,18.46,118.16,118.09,43.71915206]
[1644215323986,18.46,118.16,118.09,43.46915206]
[1644215325391,18.21,118.16,118.09,43.46915206]
[1644215326290,29.13079314,118.16,118.09,43.46915206]
[1644215326690,44.18910404,118.16,118.06,22.825]
[1644215326890,24.371,118.15,118.06,23.075]
[1644215327093,42.581,118.15,118.06,23.075]
[1644215327291,42.831,118.15,118.06,23.075]
[1644215327690,42.831,118.15,118.07,36.29031009]
[1644215328092,55.5351,118.15,118.08,23.7178]
[1644215328293,55.5351,118.15,118.09,34.29773208]
[1644215330299,55.5351,118.15,118.08,23.7178]
[1644215332021,42.831,118.15,118.09,46.14425673]
[1644215332223,30.621,118.15,118.09,46.14425673]
[1644215332820,6.25,118.15,118.09,46.14425673]
[1644215333021,0.25,118.15,118.09,46.14425673]
[1644215333321,31.1612,118.17,118.11,45.27224862]
[1644215333922,30.9112,118.17,118.11,45.27224862]
[1644215334222,6.62152057,118.2,118.11,45.52224862]
[1644215334420,23.7408,118.22,118.12,26.02841823]
[1644215334823,23.7408,118.22,118.13,37.0278577]
[1644215335024,23.7408,118.22,118.13,38.87127593]
[1644215335222,48.04,118.24,118.13,39.12127593]
[1644215335421,6.0,118.22,118.14,23.557]
[1644215335622,54.04,118.24,118.14,23.557]
[1644215335822,54.04,118.24,118.14,23.807]
[1644215336022,17.75048333,118.23,118.14,23.807]
[1644215336221,24.00048333,118.23,118.15,39.4495742]
[1644215336721,24.00048333,118.23,118.15,39.6995742]
[1644215336923,6.25,118.23,118.15,39.6995742]
[1644215337123,0.25,118.23,118.15,39.6995742]
[1644215337327,54.04,118.24,118.15,39.6995742]
[1644215340226,54.29,118.24,118.15,39.6995742]
[1644215340425,24.9018,118.26,118.15,41.54297503]
[1644215340625,12.21,118.26,118.16,23.3133]
[1644215340829,14.59952057,118.3,118.16,35.7733]
[1644215341025,14.59952057,118.3,118.17,24.76950083]
[1644215341026,38.11776893,118.3,118.17,24.76950083]
[1644215341226,35.72824836,118.3,118.18,40.00112984]
[1644215341431,17.73179501,118.29,118.2,34.55479921]
[1644215341826,124.71,118.31,118.2,34.80479921]
[1644215342026,124.71,118.31,118.2,40.80479921]
[1644215342226,17.73788275,118.3,118.2,40.80479921]
[1644215342627,17.73788275,118.3,118.2,53.48909921]
[1644215342628,6.0,118.3,118.2,53.48909921]
[1644215343330,22.54393954,118.31,118.2,53.48909921]
[1644215343727,22.79393954,118.31,118.2,53.48909921]
[1644215343928,18.46,118.31,118.2,53.48909921]
[1644215344228,19.84013871,118.3,118.2,53.48909921]
[1644215344727,6.25,118.3,118.2,53.48909921]
[1644215345128,0.25,118.3,118.2,40.80479921]
[1644215345328,20.5656109,118.3,118.2,40.55479921]
[1644215346130,20.5656109,118.3,118.2,34.55479921]
[1644215346530,17.71275338,118.29,118.2,34.55479921]
[1644215346729,12.6901,118.28,118.2,34.80479921]
[1644215347030,14.7957109,118.28,118.2,34.55479921]
[1644215347232,2.1056109,118.27,118.2,34.55479921]
[1644215347631,8.3556109,118.27,118.2,34.55479921]
[1644215348232,8.3556109,118.27,118.2,34.80479921]
[1644215348630,8.3556109,118.27,118.2,0.25]
[1644215348831,8.3556109,118.27,118.19,24.9427]
[1644215349631,8.3556109,118.27,118.19,24.6927]
[1644215349832,2.1056109,118.26,118.17,22.9261]
[1644215350037,12.21,118.25,118.17,22.9261]
[1644215350234,12.46,118.25,118.12,12.6933]
[1644215350532,20.5656109,118.25,118.13,23.4639]
[1644215350733,20.5656109,118.25,118.14,36.88918951]
[1644215350934,33.2593109,118.25,118.14,36.88918951]
[1644215351834,33.2593109,118.25,118.14,37.13918951]
[1644215354236,37.4893109,118.25,118.14,37.13918951]
[1644215355338,37.2393109,118.25,118.14,37.13918951]
[1644215356441,33.0093109,118.25,118.14,37.13918951]
[1644215357042,33.0093109,118.25,118.14,36.88918951]
[1644215357544,37.2393109,118.25,118.14,36.88918951]
[1644215357745,37.4893109,118.25,118.14,36.88918951]
[1644215358146,4.23,118.24,118.12,24.6643]
[1644215358345,12.7002,118.21,118.11,11.269]
[1644215358544,12.21,118.2,118.11,11.269]
[1644215358843,14.5656109,118.2,118.11,11.269]
[1644215359043,20.5656109,118.2,118.11,46.55144619]
[1644215359248,12.7017,118.18,118.11,46.55144619]
[1644215359443,24.9117,118.18,118.11,46.55144619]
[1644215359646,31.1617,118.18,118.11,46.55144619]
[1644215360644,31.1617,118.18,118.11,35.28244619]
[1644215364353,30.9117,118.18,118.11,35.28244619]
[1644215366158,24.9117,118.18,118.11,35.28244619]
[1644215366758,24.9117,118.18,118.11,35.53244619]
[1644215366759,12.21,118.18,118.11,35.53244619]
[1644215367559,18.21,118.18,118.11,35.53244619]
[1644215367759,6.0,118.18,118.11,35.53244619]
[1644215367959,6.25,118.18,118.11,35.53244619]
[1644215368161,6.25,118.18,118.11,41.53244619]
[1644215368358,6.25,118.18,118.11,35.53244619]
[1644215369761,0.25,118.18,118.11,35.53244619]
[1644215369962,6.25,118.18,118.11,35.53244619]
[1644215370562,6.0,118.21,118.11,43.36510579]
[1644215370764,6.25,118.21,118.11,43.36510579]
[1644215370963,0.25,118.21,118.11,43.36510579]
[1644215371162,0.25,118.21,118.13,42.45843936]
[1644215371465,0.25,118.21,118.13,42.70843936]
[1644215371864,12.21,118.24,118.13,42.70843936]
[1644215372066,1.19087547,118.26,118.13,63.23299896]
[1644215372287,12.21,118.26,118.14,60.6856]
[1644215372688,1.19087547,118.28,118.15,1.8326596]
[1644215373087,1.19087547,118.28,118.16,47.71338219]
[1644215373290,1.19087547,118.28,118.16,47.96338219]
[1644215373489,7.19087547,118.28,118.17,1.8326596]
[1644215373688,6.0,118.28,118.18,36.54955397]
[1644215374090,9.29648637,118.28,118.18,36.54955397]
[1644215374288,1.19087547,118.27,118.18,36.54955397]
[1644215374490,23.1529178,118.27,118.18,36.54955397]
[1644215374688,1.19087547,118.26,118.18,36.54955397]
[1644215374889,18.9239178,118.26,118.18,36.54955397]
[1644215375190,39.4895287,118.26,118.18,36.54955397]
[1644215375394,34.44908637,118.26,118.18,36.54955397]
[1644215377292,1.19087547,118.25,118.18,36.54955397]
[1644215377695,0.25,118.25,118.18,36.54955397]
[1644215377896,0.25,118.25,118.18,36.79955397]
[1644215378899,18.46,118.27,118.18,36.79955397]
[1644215379099,19.65087547,118.27,118.18,36.79955397]
[1644215379899,19.65087547,118.27,118.18,36.54955397]
[1644215380101,13.88337547,118.26,118.18,36.54955397]
[1644215380301,14.13337547,118.26,118.18,36.54955397]
[1644215380503,20.13337547,118.26,118.18,36.54955397]
[1644215381914,32.09337547,118.26,118.18,36.54955397]
[1644215382510,34.19898637,118.26,118.18,36.54955397]
[1644215383312,34.44898637,118.26,118.16,23.0593]
[1644215383737,1.19087547,118.25,118.16,23.0593]
[1644215383937,12.6944,118.24,118.16,23.0593]
[1644215384137,18.6944,118.24,118.16,23.0593]
[1644215384337,18.9444,118.24,118.16,67.95305121]
[1644215384737,33.2600109,118.24,118.16,67.95305121]
[1644215385142,34.45088637,118.24,118.16,67.95305121]
[1644215385346,34.45088637,118.24,118.16,44.89375121]
[1644215386840,34.45088637,118.24,118.1,24.5714]
[1644215387042,17.74855209,118.23,118.1,24.5714]
[1644215387242,12.7005,118.19,118.1,24.5714]
[1644215387441,34.6885,118.19,118.1,24.5714]
[1644215387642,40.9385,118.19,118.1,24.5714]
[1644215387844,43.0441109,118.19,118.11,39.22644286]
[1644215388645,47.2751109,118.19,118.11,39.22644286]
[1644215388946,12.7028,118.17,118.11,39.22644286]
[1644215389141,18.7028,118.17,118.11,39.22644286]
[1644215389342,18.9528,118.17,118.11,39.22644286]
[1644215389944,6.0,118.17,118.11,41.31343173]
[1644215390143,6.0,118.2,118.11,41.31343173]
[1644215390344,6.0,118.2,118.11,47.31343173]
[1644215390744,6.0,118.23,118.11,47.31343173]
[1644215390946,28.2407184,118.25,118.13,39.44169054]
[1644215391143,28.2407184,118.25,118.13,62.32029054]
[1644215391345,28.2407184,118.25,118.13,62.57029054]
[1644215391346,28.4907184,118.25,118.13,62.57029054]
[1644215391544,1.19087547,118.24,118.13,62.57029054]
[1644215391743,19.20588184,118.24,118.13,62.57029054]
[1644215392043,20.13637547,118.24,118.13,62.57029054]
[1644215392843,20.13637547,118.24,118.13,70.40727941]
[1644215393043,18.9455,118.24,118.13,70.40727941]
[1644215393243,6.25,118.24,118.13,70.40727941]
[1644215393647,1.44087547,118.24,118.13,70.40727941]
[1644215393847,6.25,118.24,118.13,70.40727941]
[1644215394446,19.40087547,118.25,118.13,70.40727941]
[1644215395447,32.09527547,118.25,118.13,70.15727941]
[1644215395648,1.19087547,118.23,118.13,62.32029054]
[1644215395947,13.65087547,118.23,118.13,62.32029054]
[1644215396149,19.65087547,118.23,118.13,62.32029054]
[1644215396849,19.65087547,118.23,118.13,62.57029054]
[1644215397047,32.34657547,118.23,118.13,62.57029054]
[1644215398050,32.34657547,118.23,118.13,62.32029054]
[1644215399853,19.40087547,118.23,118.14,1.83698887]
[1644215400052,6.0,118.23,118.15,36.242899]
[1644215400254,6.0,118.23,118.15,36.492899]
[1644215400456,6.0,118.24,118.15,36.492899]
[1644215400758,7.19087547,118.25,118.15,67.312099]
[1644215400955,1.19087547,118.25,118.15,67.312099]
[1644215401155,7.44087547,118.25,118.15,67.312099]
[1644215402357,6.25,118.25,118.15,67.312099]
[1644215402555,0.25,118.25,118.15,67.312099]
[1644215402757,6.0,118.25,118.15,67.312099]
[1644215402956,6.0,118.25,118.15,80.001699]
[1644215403156,6.25,118.25,118.15,80.001699]
[1644215403354,1.44087547,118.25,118.15,80.001699]
[1644215403555,7.44087547,118.25,118.15,80.001699]
[1644215403956,7.44087547,118.25,118.15,81.83868787]
[1644215405558,6.25,118.25,118.15,81.83868787]
[1644215405958,0.25,118.25,118.15,81.83868787]
[1644215406157,6.25,118.25,118.15,81.83868787]
[1644215406559,0.25,118.25,118.15,81.83868787]
[1644215407557,6.25,118.26,118.15,81.83868787]
[1644215407958,19.40087547,118.27,118.15,81.83868787]
[1644215408958,1.19087547,118.26,118.15,81.83868787]
[1644215409158,7.19087547,118.26,118.15,81.83868787]
[1644215409360,7.44087547,118.26,118.15,81.83868787]
[1644215409558,1.19087547,118.27,118.15,94.04868787]
[1644215409759,1.19087547,118.28,118.16,4.229]
[1644215409961,1.19087547,118.28,118.18,12.6866]
[1644215410162,1.19087547,118.29,118.19,24.1411]
[1644215410362,1.19087547,118.29,118.19,26.22808887]
[1644215410564,7.19087547,118.29,118.2,34.60547412]
[1644215410762,1.19087547,118.3,118.2,36.69246299]
[1644215410962,1.19087547,118.29,118.22,45.50940883]
[1644215411161,7.19087547,118.29,118.22,45.50940883]
[1644215411365,1.19087547,118.29,118.22,45.75940883]
[1644215411562,1.19087547,118.29,118.23,1.83698887]
[1644215411762,1.19087547,118.31,118.23,2.08698887]
[1644215411966,1.19087547,118.33,118.23,31.39008887]
[1644215412164,1.19087547,118.33,118.24,1.83698887]
[1644215412366,1.19087547,118.33,118.24,47.53733576]
[1644215412664,1.75315111,118.34,118.24,51.70034689]
[1644215412864,1.75315111,118.34,118.24,53.53733576]
[1644215413064,6.56227564,118.34,118.24,53.53733576]
[1644215413263,0.56227564,118.34,118.24,53.53733576]
[1644215413467,6.56227564,118.34,118.24,53.53733576]
[1644215413664,6.56227564,118.34,118.24,45.70034689]
[1644215413864,5.97915111,118.34,118.24,45.70034689]
[1644215414063,24.43915111,118.34,118.24,45.45034689]
[1644215414265,14.13089728,118.33,118.24,45.45034689]
[1644215414467,15.32177275,118.33,118.24,45.45034689]
[1644215414667,21.57177275,118.33,118.24,45.45034689]
[1644215414863,20.38089728,118.33,118.24,45.45034689]
[1644215415663,21.57177275,118.33,118.24,45.45034689]
[1644215416267,20.38089728,118.33,118.24,45.45034689]
[1644215416463,21.57177275,118.33,118.24,45.45034689]
[1644215416666,20.38089728,118.33,118.23,23.3031]
[1644215416864,48.57328365,118.33,118.23,23.3031]
[1644215417067,73.32938365,118.33,118.18,23.5488]
[1644215417290,1.19087547,118.31,118.16,48.3555]
[1644215417490,16.438,118.3,118.16,48.3555]
[1644215417692,12.6912,118.28,118.17,44.92633318]
[1644215417889,14.13089728,118.27,118.17,44.92633318]
[1644215418091,12.21,118.26,118.17,44.92633318]
[1644215418292,1.20253666,118.25,118.17,44.92633318]
[1644215418791,7.45253666,118.25,118.17,44.92633318]
[1644215419393,19.66253666,118.25,118.17,44.92633318]
[1644215420094,32.35693666,118.25,118.16,48.3555]
[1644215420293,34.46254756,118.25,118.13,23.7182]
[1644215420595,32.35693666,118.25,118.13,23.7182]
[1644215420794,32.10693666,118.25,118.13,25.55045319]
[1644215421194,32.10693666,118.25,118.14,43.62181449]
[1644215421693,32.10693666,118.25,118.14,43.87181449]
[1644215422494,30.9044,118.25,118.14,45.70406768]
[1644215422694,18.21,118.25,118.14,45.70406768]
[1644215422895,18.21,118.25,118.14,75.15146768]
[1644215424296,22.86755635,118.25,118.14,75.15146768]
[1644215424495,18.21,118.25,118.14,75.15146768]
[1644215426297,18.46,118.25,118.14,75.15146768]
[1644215426897,18.46,118.25,118.14,87.84226768]
[1644215426898,18.21,118.25,118.14,87.84226768]
[1644215427098,13.40087547,118.29,118.15,12.21]
[1644215427302,1.19087547,118.3,118.16,46.625]
[1644215427506,1.19087547,118.3,118.17,12.21]
[1644215427701,1.19087547,118.31,118.18,22.7501]
[1644215427901,1.19087547,118.31,118.19,44.64529464]
[1644215427902,14.95281859,118.31,118.19,44.64529464]
[1644215428101,14.95281859,118.31,118.19,52.47754783]
[1644215428301,14.95281859,118.31,118.19,52.72754783]
[1644215428502,20.95281859,118.31,118.21,41.53303735]
[1644215428702,20.95281859,118.31,118.21,47.78303735]
[1644215428902,20.95281859,118.31,118.21,41.78303735]
[1644215429102,20.95281859,118.31,118.21,47.78303735]
[1644215429403,21.20281859,118.31,118.21,47.78303735]
[1644215429805,21.20281859,118.31,118.21,41.78303735]
[1644215430403,7.44087547,118.31,118.21,41.78303735]
[1644215430603,6.94087547,118.31,118.21,41.78303735]
[1644215430803,6.25,118.31,118.21,41.78303735]
[1644215431003,0.25,118.31,118.21,41.78303735]
[1644215431204,18.46,118.32,118.21,41.78303735]
[1644215431501,33.53767293,118.32,118.21,41.78303735]
[1644215431902,48.33028383,118.32,118.21,41.78303735]
[1644215432506,30.897,118.32,118.21,41.78303735]
[1644215432702,30.897,118.32,118.21,49.61529054]
[1644215432903,18.21,118.32,118.21,49.61529054]
[1644215433503,6.0,118.32,118.21,49.61529054]
[1644215433702,0.25,118.32,118.21,49.61529054]
[1644215433902,53.9558,118.33,118.21,49.61529054]
[1644215434307,6.0,118.33,118.23,46.30226494]
[1644215434705,28.2287759,118.34,118.23,52.55226494]
[1644215435305,6.56227564,118.34,118.23,52.55226494]
[1644215435706,0.81227564,118.34,118.23,52.55226494]
[1644215435905,6.81227564,118.34,118.23,52.55226494]
[1644215436105,6.81227564,118.34,118.23,46.55226494]
[1644215436106,19.49727564,118.34,118.23,46.55226494]
[1644215436307,13.40301816,118.33,118.23,46.30226494]
[1644215436707,19.65301816,118.33,118.23,46.30226494]
[1644215437107,19.65301816,118.33,118.22,24.8856]
[1644215437108,2.1056109,118.32,118.22,24.8856]
[1644215437308,12.21,118.31,118.22,24.8856]
[1644215437711,2.1056109,118.3,118.22,24.8856]
[1644215438109,0.25,118.3,118.23,35.76683315]
[1644215438308,0.25,118.3,118.23,36.01683315]
[1644215439312,6.25,118.31,118.23,36.01683315]
[1644215440511,6.25,118.31,118.23,35.76683315]
[1644215440914,0.25,118.31,118.23,35.76683315]
[1644215441212,6.0,118.31,118.23,35.76683315]
[1644215441417,6.25,118.31,118.23,35.76683315]
[1644215442414,0.25,118.31,118.23,35.76683315]
[1644215442713,6.0,118.31,118.23,35.76683315]
[1644215443115,4.41633415,118.3,118.23,35.76683315]
[1644215443314,4.66633415,118.3,118.23,35.76683315]
[1644215444114,4.66633415,118.3,118.22,24.8856]
[1644215444115,14.8034014,118.3,118.22,24.8856]
[1644215444316,8.8034014,118.3,118.22,24.8856]
[1644215444515,14.8034014,118.3,118.22,24.8856]
[1644215444715,10.66633415,118.3,118.22,24.8856]
[1644215445716,12.77194505,118.3,118.23,48.75774678]
[1644215446917,12.52194505,118.3,118.23,48.75774678]
[1644215448122,10.41633415,118.3,118.23,48.75774678]
[1644215448323,6.0,118.3,118.23,48.75774678]
[1644215448526,53.9801,118.33,118.23,49.00774678]
[1644215448728,58.39607194,118.33,118.23,49.00774678]
[1644215449121,45.71037194,118.33,118.23,49.00774678]
[1644215449521,23.0844,118.33,118.23,55.00774678]
[1644215449921,0.56227564,118.34,118.23,55.00774678]
[1644215450220,0.56227564,118.34,118.24,24.7468]
[1644215450420,0.56227564,118.34,118.25,34.23013206]
[1644215450624,0.56227564,118.34,118.25,40.23013206]
[1644215450947,0.56227564,118.34,118.25,40.48013206]
[1644215451745,0.56227564,118.34,118.25,34.48013206]
[1644215456252,0.56227564,118.34,118.25,40.48013206]
[1644215456652,0.56227564,118.34,118.25,34.48013206]
[1644215458355,10.95639747,118.33,118.25,34.23013206]
[1644215458553,10.95639747,118.33,118.24,24.7468]
[1644215458752,28.91639747,118.33,118.24,24.7468]
[1644215459553,43.70790837,118.33,118.24,73.45594475]
[1644215459753,43.70790837,118.33,118.24,48.70914475]
[1644215461554,33.2515109,118.33,118.24,48.70914475]
[1644215462155,33.2515109,118.33,118.24,54.70914475]
[1644215462354,33.2515109,118.33,118.24,48.70914475]
[1644215463756,33.0015109,118.33,118.24,48.95914475]
[1644215464158,33.0015109,118.33,118.24,54.95914475]
[1644215464359,33.0015109,118.33,118.24,48.95914475]
[1644215465161,31.1459,118.33,118.24,48.95914475]
[1644215465461,31.1459,118.33,118.24,54.95914475]
[1644215465863,18.46,118.33,118.24,48.95914475]
[1644215467159,18.46,118.33,118.24,54.95914475]
[1644215467360,18.46,118.33,118.24,48.95914475]
[1644215469361,20.5656109,118.33,118.24,48.95914475]
[1644215469561,20.5656109,118.33,118.24,48.70914475]
[1644215470163,33.2517109,118.33,118.24,48.70914475]
[1644215470364,31.1461,118.33,118.24,48.70914475]
[1644215473167,18.46,118.33,118.24,54.70914475]